fUSD/lending_fUSD_20251011
["ID","MTS","AMOUNT","RATE_DAILY","PERIOD"]
[390892286,1760197842454,-4599.99999998,0.00016053,2]
[390892287,1760197842465,-1091.52236267,0.00016053,2]
[390892288,1760197842477,-643.65507974,0.00016053,2]
[390892289,1760197842545,-240.82699918,0.00016053,2]
[390892290,1760197842557,-150.0,0.00016053,2]
[390892291,1760197842567,-5733.97300082,0.00016053,2]
[390892298,1760197843835,-897.47495983,0.0001534,2]
[390892299,1760197843846,-495.55069786,0.0001534,2]
[390892300,1760197843858,-23.64576231,0.0001534,2]
[390892301,1760197843867,-1026.11163085,0.00016053,2]
[390892302,1760197843879,-733.47851814,0.00016053,2]
[390892303,1760197843890,-652.89722336,0.00016053,2]
[390892304,1760197843901,-298.30523705,0.00016053,2]
[390892305,1760197843911,-1285.11643845,0.00016053,2]
[390892306,1760197843923,-254.39513532,0.00016053,2]
[390892307,1760197843936,-734.26484113,0.00016053,2]
[390892308,1760197843946,-1123.72,0.00016087,2]
[390892309,1760197843957,-393.2058724,0.00016095,2]
[390892310,1760197843970,-573.7941276,0.00016095,2]
[390892311,1760197843981,-342.90669013,0.00016095,2]
[390892312,1760197843991,-1104.0,0.00016095,2]
[390892313,1760197844002,-967.0,0.0001615,2]
[390892314,1760197844012,-1104.0,0.0001615,2]
[390892315,1760197844022,-1515.0,0.00016164,2]
[390892316,1760197844032,-967.0,0.00016205,2]
[390892317,1760197844041,-1104.0,0.00016205,2]
[390892318,1760197844050,-162.62600475,0.00016227,2]
[390892319,1760197844060,-474.23,0.00016242,2]
[390892320,1760197844070,-1089.21,0.00016242,2]
[390892321,1760197844079,-500.0,0.00016248,2]
[390892322,1760197844088,-967.0,0.00016259,2]
[390892323,1760197844098,-1104.0,0.0001626,2]
[390892324,1760197844107,-161.66668498,0.00016265,2]
[390892325,1760197844117,-970.04888366,0.00016314,2]
[390892326,1760197844126,-1104.0,0.00016314,2]
[390892327,1760197844137,-1123.72,0.00016361,2]
[390892328,1760197844146,-181.84259557,0.00016366,2]
[390892329,1760197844156,-1105.01343901,0.00016369,2]
[390892330,1760197844165,-475.23572958,0.00016385,2]
[390892331,1760197844174,-1325.267711,0.00016392,5]
[390892332,1760197844185,-500.0,0.00016396,2]
[390892333,1760197844194,-500.0,0.00016396,2]
[390892334,1760197844203,-500.0,0.00016396,2]
[390892335,1760197844213,-500.0,0.00016396,2]
[390892336,1760197844223,-500.0,0.00016396,2]
[390892337,1760197844232,-500.0,0.00016396,2]
[390892338,1760197844242,-500.0,0.00016396,2]
[390892339,1760197844251,-500.0,0.00016396,2]
[390892340,1760197844671,-500.0,0.00016396,2]
[390892341,1760197844704,-500.0,0.00016396,2]
[390892342,1760197844714,-500.0,0.00016396,2]
[390892343,1760197844725,-500.0,0.00016396,2]
[390892344,1760197844734,-500.0,0.00016396,2]
[390892345,1760197844747,-500.0,0.00016396,2]
[390892346,1760197844757,-500.0,0.00016396,2]
[390892347,1760197844767,-500.0,0.00016396,2]
[390892348,1760197844778,-500.0,0.00016396,2]
[390892349,1760197844788,-500.0,0.00016396,2]
[390892350,1760197844798,-500.0,0.00016396,2]
[390892351,1760197844807,-500.0,0.00016396,2]
[390892352,1760197844817,-500.0,0.00016396,2]
[390892353,1760197844827,-500.0,0.00016396,2]
[390892354,1760197844836,-500.0,0.00016396,2]
[390892355,1760197844846,-500.0,0.00016396,2]
[390892356,1760197844855,-500.0,0.00016396,2]
[390892357,1760197844865,-500.0,0.00016396,2]
[390892358,1760197844875,-500.0,0.00016396,2]
[390892359,1760197844884,-500.0,0.00016396,2]
[390892360,1760197844894,-500.0,0.00016396,2]
[390892361,1760197844903,-500.0,0.00016396,2]
[390892362,1760197844913,-500.0,0.00016396,2]
[390892363,1760197844922,-779.0,0.00016396,2]
[390892364,1760197844931,-500.0,0.00016396,2]
[390892365,1760197844941,-500.0,0.00016396,2]
[390892366,1760197845164,-500.0,0.00016396,2]
[390892367,1760197845175,-500.0,0.00016396,2]
[390892368,1760197845186,-500.0,0.00016396,2]
[390892369,1760197845195,-500.0,0.00016396,2]
[390892370,1760197845206,-500.0,0.00016396,2]
[390892371,1760197845216,-500.0,0.00016396,2]
[390892372,1760197845226,-500.0,0.00016396,2]
[390892373,1760197845236,-500.0,0.00016396,2]
[390892374,1760197845246,-500.0,0.00016396,2]
[390892375,1760197845256,-500.0,0.00016396,2]
[390892376,1760197845266,-500.0,0.00016396,2]
[390892377,1760197845275,-500.0,0.00016396,2]
[390892378,1760197845287,-500.0,0.00016396,2]
[390892379,1760197845299,-500.0,0.00016396,2]
[390892380,1760197845309,-500.0,0.00016396,2]
[390892381,1760197845320,-500.0,0.00016396,2]
[390892382,1760197845329,-500.0,0.00016396,2]
[390892383,1760197845340,-500.0,0.00016396,2]
[390892384,1760197845351,-500.0,0.00016396,2]
[390892385,1760197845361,-500.0,0.00016396,2]
[390892386,1760197845371,-500.0,0.00016396,2]
[390892387,1760197845381,-500.0,0.00016396,2]
[390892388,1760197845397,-500.0,0.00016396,2]
[390892389,1760197845407,-500.0,0.00016396,2]
[390892390,1760197845416,-500.0,0.00016396,2]
[390892391,1760197845426,-500.0,0.00016396,2]
[390892392,1760197845438,-500.0,0.00016396,2]
[390892393,1760197845448,-500.0,0.00016396,2]
[390892394,1760197845458,-500.0,0.00016396,2]
[390892395,1760197845468,-500.0,0.00016396,2]
[390892396,1760197845477,-500.0,0.00016396,2]
[390892397,1760197845487,-500.0,0.00016396,2]
[390892398,1760197845496,-500.0,0.00016396,2]
[390892399,1760197845506,-500.0,0.00016396,2]
[390892400,1760197845516,-500.0,0.00016396,2]
[390892401,1760197845526,-500.0,0.00016396,2]
[390892402,1760197845535,-500.0,0.00016396,2]
[390892403,1760197845544,-500.0,0.00016396,2]
[390892404,1760197845554,-500.0,0.00016396,2]
[390892405,1760197845564,-500.0,0.00016396,2]
[390892406,1760197845574,-500.0,0.00016396,2]
[390892407,1760197845583,-500.0,0.00016396,2]
[390892408,1760197845592,-788.0,0.00016396,2]
[390892409,1760197845602,-500.0,0.00016396,2]
[390892410,1760197845612,-500.0,0.00016396,2]
[390892411,1760197845621,-500.0,0.00016396,2]
[390892412,1760197845631,-500.0,0.00016396,2]
[390892413,1760197845640,-500.0,0.00016396,2]
[390892414,1760197845654,-500.0,0.00016396,2]
[390892415,1760197845663,-500.0,0.00016396,2]
[390892416,1760197845673,-500.0,0.00016396,2]
[390892417,1760197845684,-500.0,0.00016396,2]
[390892418,1760197845694,-500.0,0.00016396,2]
[390892419,1760197845708,-500.0,0.00016396,2]
[390892420,1760197845719,-500.0,0.00016396,2]
[390892421,1760197845729,-500.0,0.00016396,2]
[390892422,1760197845738,-500.0,0.00016396,2]
[390892423,1760197845748,-500.0,0.00016396,2]
[390892424,1760197845758,-500.0,0.00016396,2]
[390892425,1760197845767,-500.0,0.00016396,2]
[390892426,1760197845777,-500.0,0.00016396,2]
[390892427,1760197845786,-500.0,0.00016396,2]
[390892428,1760197845796,-500.0,0.00016396,2]
[390892429,1760197845806,-500.0,0.00016396,2]
[390892430,1760197845815,-500.0,0.00016396,2]
[390892431,1760197845825,-500.0,0.00016396,2]
[390892432,1760197845834,-500.0,0.00016396,2]
[390892433,1760197845844,-500.0,0.00016396,2]
[390892434,1760197845854,-500.0,0.00016396,2]
[390892435,1760197845863,-500.0,0.00016396,2]
[390892436,1760197845873,-500.0,0.00016396,2]
[390892437,1760197845883,-500.0,0.00016396,2]
[390892438,1760197845893,-500.0,0.00016396,2]
[390892439,1760197845903,-500.0,0.00016396,2]
[390892440,1760197845912,-500.0,0.00016396,2]
[390892441,1760197845922,-500.0,0.00016396,2]
[390892442,1760197845934,-500.0,0.00016396,2]
[390892443,1760197845943,-500.0,0.00016396,2]
[390892444,1760197845952,-500.0,0.00016396,2]
[390892445,1760197845962,-500.0,0.00016396,2]
[390892446,1760197845972,-500.0,0.00016396,2]
[390892447,1760197845981,-500.0,0.00016396,2]
[390892448,1760197845991,-500.0,0.00016396,2]
[390892449,1760197846001,-500.0,0.00016396,2]
[390892450,1760197846011,-500.0,0.00016396,2]
[390892451,1760197846020,-500.0,0.00016396,2]
[390892452,1760197846029,-500.0,0.00016396,2]
[390892453,1760197846040,-500.0,0.00016396,2]
[390892454,1760197846050,-500.0,0.00016396,2]
[390892455,1760197846060,-500.0,0.00016396,2]
[390892456,1760197846070,-500.0,0.00016396,2]
[390892457,1760197846081,-500.0,0.00016396,2]
[390892458,1760197846091,-500.0,0.00016396,2]
[390892459,1760197846100,-500.0,0.00016396,2]
[390892460,1760197846110,-500.0,0.00016396,2]
[390892461,1760197846121,-500.0,0.00016396,2]
[390892462,1760197846131,-500.0,0.00016396,2]
[390892463,1760197846140,-500.0,0.00016396,2]
[390892464,1760197846151,-500.0,0.00016396,2]
[390892465,1760197846160,-500.0,0.00016396,2]
[390892466,1760197846170,-500.0,0.00016396,2]
[390892467,1760197846180,-500.0,0.00016396,2]
[390892468,1760197846194,-500.0,0.00016396,2]
[390892469,1760197846204,-500.0,0.00016396,2]
[390892470,1760197846214,-500.0,0.00016396,2]
[390892471,1760197846224,-500.0,0.00016396,2]
[390892472,1760197846234,-500.0,0.00016396,2]
[390892473,1760197846244,-500.0,0.00016396,2]
[390892474,1760197846254,-500.0,0.00016396,2]
[390892475,1760197846263,-500.0,0.00016396,2]
[390892476,1760197846273,-500.0,0.00016396,2]
[390892477,1760197846282,-500.0,0.00016396,2]
[390892478,1760197846292,-500.0,0.00016396,2]
[390892479,1760197846301,-500.0,0.00016396,2]
[390892480,1760197846311,-500.0,0.00016396,2]
[390892481,1760197846320,-500.0,0.00016396,2]
[390892482,1760197846330,-500.0,0.00016396,2]
[390892483,1760197846339,-571.0,0.00016396,2]
[390892484,1760197846349,-500.0,0.00016396,2]
[390892485,1760197846359,-500.0,0.00016396,2]
[390892486,1760197846369,-500.0,0.00016396,2]
[390892487,1760197846379,-500.0,0.00016396,2]
[390892488,1760197846398,-500.0,0.00016396,2]
[390892489,1760197846409,-500.0,0.00016396,2]
[390892490,1760197846419,-500.0,0.00016396,2]
[390892491,1760197846429,-500.0,0.00016396,2]
[390892492,1760197846439,-500.0,0.00016396,2]
[390892493,1760197846449,-500.0,0.00016396,2]
[390892494,1760197846459,-500.0,0.00016396,2]
[390892495,1760197846469,-500.0,0.00016396,2]
[390892496,1760197846479,-500.0,0.00016396,2]
[390892497,1760197846489,-500.0,0.00016396,2]
[390892498,1760197846500,-500.0,0.00016396,2]
[390892499,1760197846509,-500.0,0.00016396,2]
[390892500,1760197846519,-500.0,0.00016396,2]
[390892501,1760197846530,-500.0,0.00016396,2]
[390892502,1760197846540,-500.0,0.00016396,2]
[390892503,1760197846549,-500.0,0.00016396,2]
[390892504,1760197846559,-500.0,0.00016396,2]
[390892505,1760197846569,-500.0,0.00016396,2]
[390892506,1760197846579,-500.0,0.00016396,2]
[390892507,1760197846588,-500.0,0.00016396,2]
[390892508,1760197846598,-500.0,0.00016396,2]
[390892509,1760197846608,-500.0,0.00016396,2]
[390892510,1760197846618,-500.0,0.00016396,2]
[390892511,1760197846628,-500.0,0.00016396,2]
[390892512,1760197846638,-998.0,0.00016396,2]
[390892513,1760197846651,-275.17849063,0.000164,2]
[390892514,1760197846661,-236.43385587,0.000164,2]
[390892515,1760197846671,-183.4,0.00016438,2]
[390892516,1760197846681,-300.0,0.00016438,2]
[390892517,1760197846691,-1000.0,0.00016438,2]
[390892518,1760197846701,-218.08138793,0.00016438,2]
[390892519,1760197846711,-500.0,0.00016459,2]
[390892520,1760197846722,-500.0,0.00016459,2]
[390892521,1760197846732,-1000.0,0.00016466,2]
[390892522,1760197846742,-1000.0,0.00016472,2]
[390892523,1760197846752,-500.0,0.00016522,2]
[390892524,1760197846761,-236.43385587,0.000166,2]
[390892525,1760197846771,-3014.685,0.00016604,2]
[390892526,1760197846781,-176.078,0.00016604,2]
[390892527,1760197846791,-505.7175309,0.00016614,2]
[390892528,1760197846801,-7993.9853355,0.00016634,2]
[390892529,1760197846810,-1123.72,0.00016635,2]
[390892530,1760197846820,-160.64,0.00016639,2]
[390892531,1760197846830,-4428.0090255,0.00016651,2]
[390892532,1760197846840,-620.16,0.000167,7]
[390892533,1760197846849,-257.91778498,0.00016709,2]
[390892534,1760197846859,-334.5472959,0.00016709,2]
[390892535,1760197846869,-587.0,0.00016711,2]
[390892536,1760197846878,-183.4,0.00016712,2]
[390892537,1760197846888,-378.97940248,0.00016736,5]
[390892538,1760197846897,-433.0,0.00016752,2]
[390892539,1760197846907,-162.62600475,0.00016775,2]
[390892540,1760197846916,-500.0,0.00016796,2]
[390892541,1760197846926,-300.0,0.000168,2]
[390892542,1760197846936,-957.0,0.000168,2]
[390892543,1760197846946,-2351.0,0.00016844,2]
[390892544,1760197846956,-182.31389613,0.0001686,2]
[390892545,1760197846966,-323.62,0.00016878,2]
[390892548,1760197846975,-150.0,0.00016878,2]
[390892549,1760197846985,-300.37,0.00016878,2]
[390892550,1760197846995,-150.0,0.00016878,2]
[390892552,1760197847009,-156.72,0.00016878,2]
[390892553,1760197847019,-168.1,0.00016878,2]
[390892554,1760197847029,-168.1,0.00016878,2]
[390892555,1760197847040,-150.0,0.00016878,2]
[390892556,1760197847052,-150.0,0.00016878,2]
[390892557,1760197847063,-413.29,0.00016878,2]
[390892558,1760197847072,-150.0,0.00016878,2]
[390892559,1760197847083,-150.0,0.00016878,2]
[390892560,1760197847093,-150.0,0.00016878,2]
[390892561,1760197847104,-150.0,0.00016878,2]
[390892562,1760197847114,-150.0,0.00016878,2]
[390892563,1760197847124,-824.98,0.00016878,2]
[390892564,1760197847134,-150.0,0.00016878,2]
[390892565,1760197847144,-413.29,0.00016878,2]
[390892566,1760197847154,-351.11,0.00016878,2]
[390892567,1760197847164,-413.29,0.00016878,2]
[390892568,1760197847174,-175.9,0.00016878,2]
[390892569,1760197847184,-413.29,0.00016878,2]
[390892570,1760197847193,-175.9,0.00016878,2]
[390892571,1760197847203,-413.29,0.00016878,2]
[390892572,1760197847214,-168.1,0.00016878,2]
[390892573,1760197847225,-167.25,0.00016889,2]
[390892574,1760197847237,-1123.72,0.00016909,2]
[390892575,1760197847249,-183.4,0.00016986,2]
[390892576,1760197847259,-186.55203392,0.00017,2]
[390892577,1760197847270,-250.0,0.00017,2]
[390892578,1760197847280,-186.55203391,0.00017,2]
[390892579,1760197847290,-1500.0,0.00017014,2]
[390892580,1760197847301,-1147.67833442,0.0001702,2]
[390892581,1760197847312,-500.0,0.0001707,2]
[390892582,1760197847325,-1123.72989914,0.00017183,2]
[390892583,1760197847337,-186.55203392,0.000172,2]
[390892584,1760197847347,-186.55203391,0.000172,2]
[390892585,1760197847357,-183.4,0.0001726,2]
[390892586,1760197847367,-186.55203392,0.000173,2]
[390892587,1760197847378,-186.55203391,0.000173,2]
[390892588,1760197847389,-162.62600475,0.00017323,2]
[390892589,1760197847400,-1416.67142,0.0001734,2]
[390892590,1760197847412,-500.0,0.00017344,2]
[390892591,1760197847423,-166.66,0.00017411,2]
[390892592,1760197847434,-378.97940248,0.00017418,6]
[390892593,1760197847657,-167.23,0.00017449,2]
[390892594,1760197847668,-184.51022,0.00017507,2]
[390892595,1760197847678,-170.27442857,0.00017507,2]
[390892596,1760197847689,-183.4,0.00017534,2]
[390892597,1760197847699,-1600.0,0.00017541,2]
[390892598,1760197847709,-2000.0,0.00017562,2]
[390892599,1760197847719,-500.0,0.00017618,2]
[390892600,1760197847729,-161.66668498,0.0001762,2]
[390892601,1760197847739,-170.27442857,0.00017644,2]
[390892602,1760197847748,-351.77,0.000177,2]
[390892603,1760197847758,-168.1,0.000177,2]
[390892604,1760197847767,-168.1,0.000177,2]
[390892605,1760197847777,-175.9,0.000177,2]
[390892606,1760197847786,-413.29,0.000177,2]
[390892607,1760197847796,-178.5,0.000177,2]
[390892608,1760197847805,-175.9,0.000177,2]
[390892609,1760197847815,-413.29,0.000177,2]
[390892610,1760197847824,-175.9,0.000177,2]
[390892611,1760197847834,-413.29,0.000177,2]
[390892612,1760197847844,-413.29,0.000177,2]
[390892613,1760197847854,-413.29,0.000177,2]
[390892614,1760197847863,-717.26739895,0.0001773,2]
[390892615,1760197847872,-486.1,0.00017735,2]
[390892616,1760197847882,-546.25,0.00017735,2]
[390892617,1760197847891,-184.51022,0.00017753,2]
[390892618,1760197847900,-170.27442857,0.00017753,2]
[390892619,1760197847910,-182.31389613,0.00017795,2]
[390892620,1760197847919,-1300.0,0.000178,6]
[390892621,1760197847929,-183.4,0.00017808,2]
[390892622,1760197847940,-5000.0,0.00017824,2]
[390892623,1760197847949,-162.62600475,0.00017871,2]
[390892624,1760197847958,-170.27442857,0.0001789,2]
[390892625,1760197847968,-500.0,0.00017892,2]
[390892626,1760197847978,-2600.0,0.000179,6]
[390892627,1760197847988,-203.98154028,0.00017904,2]
[390892628,1760197847997,-167.25,0.00017999,2]
[390892629,1760197848007,-10681.17334995,0.00018,2]
[390892630,1760197848016,-239.32768675,0.00018,2]
[390892631,1760197848026,-170.19128294,0.00018,2]
[390892632,1760197848035,-230.44858083,0.00018,2]
[390892633,1760197848044,-1151.82314757,0.00018,2]
[390892634,1760197848054,-378.27828356,0.00018,2]
[390892635,1760197848906,-1509.0,0.00018,2]
[390892636,1760197850057,-5215.01595172,0.00018,2]
[390892638,1760197997183,500.0,0.00026475,120]
[390892642,1760198338157,300.0,0.0002739,120]
[390892650,1760198596632,500.0,0.00025973,120]
[390892653,1760198811779,2000.0,0.00027397,120]
[390892656,1760198823398,-151.00000016,0.00013699,2]
[390892657,1760198825099,1948.75,0.00027397,120]
[390892658,1760198825338,-163.98200923,0.00013699,2]
[390892659,1760198829289,-302.0,0.00013699,2]
[390892660,1760198938982,1047.0,0.00012,2]
[390892674,1760199032289,-85.27799061,0.00013699,2]
[390892675,1760199032298,-150.0,0.00014384,2]
[390892676,1760199032308,-171.43185533,0.00015068,2]
[390892677,1760199032317,-47.51183668,0.00015068,2]
[390892678,1760199032328,-202.48816332,0.00015068,2]
[390892679,1760199032337,-314.98200939,0.00015068,2]
[390892680,1760199032346,-150.0,0.00015068,2]
[390892681,1760199032355,-250.0,0.00015068,2]
[390892682,1760199032364,-250.0,0.00015068,2]
[390892683,1760199032373,-195.0,0.00015068,2]
[390892684,1760199032382,-1200.0,0.0001533,2]
[390892685,1760199032391,-437.52982729,0.00015332,2]
[390892686,1760199032402,-220.34137271,0.00015332,2]
[390892687,1760199032411,-179.65862729,0.00015336,2]
[390892688,1760199032524,-2320.34137271,0.00015336,2]
[390892689,1760199032533,-248.71531821,0.00015365,2]
[390892690,1760199032542,-467.20201454,0.00015374,2]
[390892691,1760199032551,-6439.0,0.00015539,2]
[390892692,1760199032560,-622.0,0.00015539,2]
[390892693,1760199032570,-4120.0,0.00015539,2]
[390892694,1760199032579,-160.0,0.00015805,2]
[390892695,1760199032588,-150.0,0.00015813,2]
[390892696,1760199032597,-217.0,0.00015827,2]
[390892697,1760199032607,-359.0,0.00015859,2]
[390892698,1760199032615,-168.0,0.00015922,2]
[390892699,1760199032624,-359.0,0.00015925,2]
[390892700,1760199032632,-359.0,0.00015964,2]
[390892701,1760199032641,-359.0,0.00015968,2]
[390892702,1760199032649,-1233.0,0.00016,2]
[390892703,1760199032658,-322.6107,0.00016069,2]
[390892704,1760199032667,-646.65982734,0.00016069,2]
[390892705,1760199032676,-1000.0,0.00016078,2]
[390892706,1760199032685,-550.0,0.00016078,2]
[390892707,1760199032694,-194.16014089,0.00016078,2]
[390892708,1760199032703,-349.00112746,0.00016078,2]
[390892709,1760199032713,-2048.0,0.00016079,2]
[390892710,1760199032723,-1266.0,0.00016079,2]
[390892711,1760199032737,-3405.0,0.00016079,2]
[390892712,1760199032747,-740.0,0.00016079,2]
[390892713,1760199032756,-1309.0,0.00016079,2]
[390892714,1760199032765,-604.0,0.00016079,2]
[390892715,1760199032774,-571.0,0.00016079,2]
[390892716,1760199032784,-1587.0,0.00016079,2]
[390892717,1760199032792,-816.0,0.00016079,2]
[390892718,1760199032802,-359.0,0.00016102,2]
[390892719,1760199032811,-359.0,0.0001619,2]
[390892720,1760199032821,-666.0,0.00016192,3]
[390892721,1760199032830,-161.66668498,0.00016213,2]
[390892722,1760199032839,-359.0,0.00016249,2]
[390892723,1760199032848,-359.0,0.0001628,2]
[390892724,1760199032857,-359.0,0.00016298,2]
[390892725,1760199032866,-475.23572958,0.00016316,2]
[390892726,1760199032876,-359.0,0.00016347,2]
[390892727,1760199032885,-249.53920576,0.000164,2]
[390892728,1760199032916,-836.02573161,0.000164,2]
[390892729,1760199032925,-359.0,0.00016426,2]
[390892730,1760199032934,-359.0,0.00016462,2]
[390892731,1760199032944,-249.53920576,0.000165,2]
[390892732,1760199032953,-836.02573161,0.000165,2]
[390892733,1760199032962,-500.0,0.000165,2]
[390892734,1760199032971,-500.0,0.000165,2]
[390892735,1760199032984,-500.0,0.000165,2]
[390892736,1760199032994,-150.0,0.000165,2]
[390892737,1760199033003,-500.0,0.00016555,2]
[390892738,1760199033013,-600.0,0.00016555,2]
[390892739,1760199033022,-500.0,0.00016555,2]
[390892740,1760199033031,-150.0,0.00016555,2]
[390892741,1760199033042,-500.0,0.0001661,2]
[390892742,1760199033051,-500.0,0.0001661,2]
[390892743,1760199033062,-359.0,0.00016626,2]
[390892744,1760199033071,-359.0,0.00016626,2]
[390892745,1760199033080,-500.0,0.00016664,2]
[390892746,1760199033090,-500.0,0.00016664,2]
[390892747,1760199033099,-500.0,0.00016667,2]
[390892748,1760199033109,-249.53920576,0.000167,2]
[390892749,1760199033118,-836.02573161,0.000167,2]
[390892750,1760199033127,-558.14,0.000167,7]
[390892751,1760199033137,-500.0,0.00016719,2]
[390892752,1760199033146,-500.0,0.00016719,2]
[390892753,1760199033156,-257.91778498,0.00016734,2]
[390892754,1760199033166,-500.0,0.00016774,2]
[390892755,1760199033175,-500.0,0.00016774,2]
[390892756,1760199033184,-500.0,0.00016829,2]
[390892757,1760199033194,-500.0,0.00016829,2]
[390892758,1760199033203,-1680.0,0.00016857,2]
[390892759,1760199033212,-2500.0,0.00016865,2]
[390892760,1760199033222,-300.0,0.00016865,2]
[390892761,1760199033231,-500.0,0.00016884,2]
[390892762,1760199033241,-150.0,0.00016884,2]
[390892763,1760199033250,-249.53920576,0.000169,2]
[390892764,1760199033259,-836.02573161,0.000169,2]
[390892765,1760199033268,-359.0,0.00016935,2]
[390892766,1760199033277,-500.0,0.00016938,2]
[390892767,1760199033287,-359.0,0.00016984,2]
[390892768,1760199033296,-359.0,0.00016988,2]
[390892769,1760199033305,-250.0,0.00017,2]
[390892770,1760199033314,-300.0,0.00017,2]
[390892771,1760199033324,-957.0,0.00017,2]
[390892772,1760199033333,-2658.783,0.0001702,2]
[390892773,1760199033342,-359.0,0.00017053,2]
[390892774,1760199033351,-359.0,0.00017093,2]
[390892775,1760199033360,-249.53920576,0.000171,2]
[390892776,1760199033369,-836.02573161,0.000171,2]
[390892777,1760199033379,-168.0,0.00017142,2]
[390892778,1760199033387,-359.0,0.00017157,2]
[390892779,1760199033397,-359.0,0.00017172,2]
[390892780,1760199033406,-935.0,0.00017204,2]
[390892781,1760199033415,-168.0,0.00017229,2]
[390892782,1760199033423,-359.0,0.00017343,2]
[390892783,1760199033432,-334.5472959,0.00017438,2]
[390892784,1760199033441,-232.0,0.0001749,2]
[390892785,1760199033450,-151.0,0.00017534,2]
[390892786,1760199033459,-1369.55401656,0.0001764,2]
[390892787,1760199033468,-240.80548533,0.00017649,2]
[390892788,1760199033477,-2556.3755069,0.00017794,2]
[390892789,1760199033487,-151.0,0.00017808,2]
[390892790,1760199033496,-546.6799504,0.00017833,2]
[390892791,1760199033505,-6957.2615191,0.00017833,2]
[390892792,1760199033514,-1105.32192644,0.000179,2]
[390892793,1760199033523,-236.19923199,0.000179,2]
[390892794,1760199033532,-236.19923199,0.000179,2]
[390892795,1760199033541,-41912.98900977,0.00017906,2]
[390892796,1760199033550,-89644.68121108,0.00017915,2]
[390892797,1760199033564,-27620.38460834,0.00017915,2]
[390892798,1760199033575,-70532.68131535,0.00017915,2]
[390892799,1760199033586,-1352.01496436,0.00017915,2]
[390892800,1760199033597,-564.13304519,0.00017915,2]
[390892801,1760199033608,-12691.36674474,0.00017915,2]
[390892802,1760199033619,-1450.0,0.00017915,2]
[390892803,1760199033644,-4299.99999991,0.00017915,2]
[390892812,1760199037567,-876.96472475,0.0001768,2]
[390892813,1760199037577,-3434.63527523,0.00017915,2]
[390892814,1760199037699,-53447.07431064,0.00017915,2]
[390892815,1760199037712,-16104.0,0.00017915,2]
[390892816,1760199037723,-7478.71,0.00017915,2]
[390892817,1760199037736,-39005.35307767,0.00017915,2]
[390892818,1760199037749,-14591.62653266,0.00017915,2]
[390892819,1760199037789,-43039.00000003,0.00017915,2]
[390892836,1760199039748,-842.36177542,0.00017915,2]
[390892837,1760199039760,-94166.77930697,0.00017915,2]
[390892838,1760199039772,-52141.4959,0.00017915,2]
[390892839,1760199039872,-504.23364513,0.00017915,2]
[390892840,1760199039884,-4300.00000001,0.00017915,2]
[390892841,1760199039999,-560.8258012,0.00017915,2]
[390892845,1760199043468,-500.0,0.00015067,2]
[390892846,1760199043480,-500.0,0.00015067,2]
[390892847,1760199043490,-374.80959353,0.00015067,2]
[390892848,1760199043502,-161.66668499,0.00016218,2]
[390892849,1760199043511,-8109.05256333,0.00017915,2]